fUSD/lending_fUSD_20260418
["ID","MTS","AMOUNT","RATE_DAILY","PERIOD"]
[420665772,1776450635433,-1000.0,8.692e-05,2]
[420665773,1776450635443,-160.0,8.699e-05,3]
[420665774,1776450635452,-1199.0,8.767e-05,2]
[420665775,1776450635462,-500.0,8.767e-05,2]
[420665776,1776450635472,-150.0,8.82e-05,2]
[420665777,1776450635483,-151.0,8.824e-05,2]
[420665778,1776450635493,-82895.99060684,8.827e-05,2]
[420665779,1776450635510,-39521.98515787,8.827e-05,2]
[420665780,1776450635536,-2642.63241699,8.827e-05,2]
[420665782,1776450638618,-17775.76653066,8.827e-05,2]
[420665783,1776450638629,-993.3784,8.827e-05,2]
[420665784,1776450638848,-921.27653065,8.827e-05,2]
[420665785,1776450638860,-89872.41799736,8.827e-05,2]
[420665786,1776450638869,-756.74461589,8.829e-05,2]
[420665787,1776450638878,-150.99,8.864e-05,2]
[420665788,1776450638887,-9999.99,8.864e-05,2]
[420665789,1776450638896,-587.0,8.903e-05,2]
[420665790,1776450638906,-2351.0,8.903e-05,2]
[420665791,1776450638917,-433.0,8.903e-05,2]
[420665792,1776450638927,-1377.42282659,8.941e-05,2]
[420665793,1776450638938,-187.78006525,8.941e-05,2]
[420665794,1776450638948,-200.0,9e-05,3]
[420665795,1776450638957,-500.0,9.041e-05,2]
[420665797,1776450638967,-1199.0,9.041e-05,2]
[420665799,1776450638976,-350.65,9.078e-05,2]
[420665801,1776450638985,-150.0,9.12e-05,2]
[420665803,1776450638995,-222.71,9.132e-05,2]
[420665805,1776450639004,-160.0,9.155e-05,2]
[420665807,1776450639013,-401.27508644,9.169e-05,2]
[420665809,1776450639023,-2000.0,9.169e-05,2]
[420665811,1776450639032,-1500.0,9.24e-05,2]
[420665813,1776450639041,-2000.0,9.247e-05,2]
[420665815,1776450639050,-500.0,9.315e-05,2]
[420665816,1776450639060,-1199.0,9.315e-05,2]
[420665817,1776450639069,-952.0,9.397e-05,5]
[420665818,1776450639078,-500.0,9.397e-05,2]
[420665819,1776450639087,-214.68,9.42e-05,2]
[420665820,1776450639097,-1428.38747117,9.489e-05,2]
[420665821,1776450639106,-194.72792766,9.489e-05,2]
[420665822,1776450639115,-2400.0,9.534e-05,2]
[420665823,1776450639125,-3000.0,9.534e-05,2]
[420665824,1776450639134,-500.0,9.589e-05,2]
[420665825,1776450639144,-1199.0,9.589e-05,2]
[420665826,1776450639153,-222.71,9.589e-05,2]
[420665827,1776450639163,-2776.953,9.614e-05,2]
[420665828,1776450639172,-184.992,9.614e-05,2]
[420665829,1776450639181,-424.67042943,9.673e-05,2]
[420665830,1776450639190,-2500.0,9.717e-05,2]
[420665831,1776450639200,-250.0,9.722e-05,2]
[420665832,1776450639210,-11437.04,9.727e-05,2]
[420665833,1776450639219,-11182.79,9.791e-05,2]
[420665834,1776450639229,-823.0,9.793e-05,2]
[420665835,1776450639238,-3292.0,9.793e-05,2]
[420665836,1776450639247,-736.0,9.793e-05,2]
[420665837,1776450639257,-1199.0,9.863e-05,2]
[420665838,1776450639266,-1865.26,9.864e-05,2]
[420665839,1776450639278,-307.0,9.9e-05,2]
[420665840,1776450639287,-1000.0,9.9e-05,2]
[420665841,1776450639296,-313.0,9.9e-05,2]
[420665842,1776450639306,-1219.0,9.969e-05,2]
[420665843,1776450639315,-926.0,9.969e-05,2]
[420665844,1776450639324,-6028.0,9.969e-05,2]
[420665845,1776450639333,-3528.0,9.969e-05,2]
[420665846,1776450639343,-160.07047832,0.0001,2]
[420665847,1776450639352,-160.05764343,0.0001,2]
[420665848,1776450639362,-500.0,0.0001,2]
[420665849,1776450639372,-350.69767613,0.0001,2]
[420665850,1776450639382,-500.0,0.0001,2]
[420665851,1776450639391,-151.0,0.0001,2]
[420665852,1776450639400,-151.0,0.0001,2]
[420665853,1776450639410,-500.0,0.0001,2]
[420665854,1776450639419,-151.0,0.0001,2]
[420665855,1776450639429,-500.0,0.0001,2]
[420665856,1776450639438,-500.0,0.0001,2]
[420665857,1776450639448,-151.0,0.0001,2]
[420665858,1776450639457,-500.0,0.0001,2]
[420665859,1776450639467,-151.0,0.0001,2]
[420665860,1776450639476,-200.0,0.0001,2]
[420665861,1776450639485,-500.0,0.0001,2]
[420665862,1776450639495,-151.0,0.0001,2]
[420665863,1776450639504,-500.0,0.0001,2]
[420665864,1776450639513,-151.0,0.0001,2]
[420665865,1776450639523,-151.0,0.0001,2]
[420665866,1776450639532,-500.0,0.0001,2]
[420665867,1776450639541,-500.0,0.0001,2]
[420665868,1776450639552,-151.0,0.0001,2]
[420665869,1776450639563,-500.0,0.0001,2]
[420665870,1776450639572,-151.0,0.0001,2]
[420665871,1776450639583,-500.0,0.0001,2]
[420665872,1776450639593,-151.0,0.0001,2]
[420665873,1776450639604,-151.0,0.0001,2]
[420665874,1776450639613,-151.0,0.0001,2]
[420665875,1776450639623,-151.0,0.0001,2]
[420665876,1776450639633,-500.0,0.0001,2]
[420665877,1776450639645,-500.0,0.0001,2]
[420665878,1776450639654,-500.0,0.0001,2]
[420665879,1776450639663,-500.0,0.0001,2]
[420665880,1776450639672,-500.0,0.0001,2]
[420665881,1776450639681,-500.0,0.0001,2]
[420665882,1776450639691,-500.0,0.0001,2]
[420665883,1776450639700,-500.0,0.0001,2]
[420665884,1776450639709,-500.0,0.0001,2]
[420665885,1776450639718,-500.0,0.0001,2]
[420665886,1776450639728,-500.0,0.0001,2]
[420665887,1776450639737,-319.10332249,0.0001,2]
[420665888,1776450639747,-151.0,0.0001,2]
[420665889,1776450639756,-151.0,0.0001,2]
[420665890,1776450639765,-151.0,0.0001,2]
[420665891,1776450639775,-151.0,0.0001,2]
[420665892,1776450639784,-151.0,0.0001,2]
[420665893,1776450639794,-151.0,0.0001,2]
[420665894,1776450639803,-586.54570469,0.0001,2]
[420665895,1776450639814,-151.0,0.0001,2]
[420665896,1776450639824,-151.0,0.0001,2]
[420665897,1776450639834,-151.0,0.0001,2]
[420665898,1776450639843,-151.0,0.0001,2]
[420665899,1776450639853,-151.0,0.0001,2]
[420665900,1776450639862,-151.0,0.0001,2]
[420665901,1776450639872,-151.0,0.0001,2]
[420665902,1776450639882,-151.0,0.0001,2]
[420665903,1776450639891,-151.0,0.0001,2]
[420665904,1776450639900,-151.0,0.0001,2]
[420665905,1776450639909,-151.0,0.0001,2]
[420665906,1776450639919,-151.0,0.0001,2]
[420665907,1776450639928,-151.0,0.0001,2]
[420665908,1776450639938,-151.0,0.0001,2]
[420665909,1776450639947,-151.0,0.0001,2]
[420665910,1776450639956,-162.692,0.0001,2]
[420665911,1776450639966,-1481.23780761,0.00010037,2]
[420665912,1776450639976,-274.93481431,0.00010037,2]
[420665913,1776450639986,-222.71,0.00010046,2]
[420665914,1776450639996,-150.0,0.00010066,2]
[420665915,1776450640005,-150.0,0.00010067,2]
[420665916,1776450640016,-383.38,0.000101,2]
[420665917,1776450640027,-1413.2,0.000101,2]
[420665918,1776450640038,-371.82,0.000101,2]
[420665919,1776450640048,-353.02,0.000101,2]
[420665920,1776450640059,-371.82,0.000101,2]
[420665921,1776450640068,-353.02,0.000101,2]
[420665922,1776450640077,-387.23,0.000101,2]
[420665923,1776450640087,-353.02,0.000101,2]
[420665924,1776450640096,-356.25,0.000101,2]
[420665925,1776450640106,-1199.0,0.00010137,2]
[420665926,1776450640115,-245.05225416,0.00010176,2]
[420665927,1776450640125,-150.0,0.00010176,2]
[420665928,1776450640134,-160.0,0.00010177,3]
[420665929,1776450640144,-4099.0,0.000102,3]
[420665930,1776450640153,-2000.0,0.00010265,2]
[420665931,1776450640162,-2000.0,0.00010274,2]
[420665932,1776450640172,-500.0,0.00010356,2]
[420665933,1776450640181,-5531.0,0.000104,5]
[420665934,1776450640191,-1199.0,0.00010411,2]
[420665935,1776450640200,-222.71,0.00010502,2]
[420665936,1776450640209,-523.68401068,0.00010548,2]
[420665937,1776450640218,-200.0,0.00010548,2]
[420665938,1776450640227,-599.60298507,0.00010584,2]
[420665939,1776450640236,-670.58624095,0.00010584,2]
[420665940,1776450640245,-200.0,0.0001062,2]
[420665941,1776450640254,-372.56374385,0.0001062,2]
[420665942,1776450640263,-168.0,0.0001062,2]
[420665943,1776450640272,-232.0,0.0001062,2]
[420665944,1776450640281,-200.0,0.0001062,2]
[420665945,1776450640291,-200.0,0.0001062,2]
[420665946,1776450640300,-200.0,0.0001062,2]
[420665947,1776450640309,-300.0,0.0001062,2]
[420665948,1776450640319,-183.271185,0.00010682,2]
[420665949,1776450640328,-1196.323734,0.00010682,2]
[420665950,1776450640337,-1223.486741,0.00010682,2]
[420665952,1776450640347,-489.560659,0.00010682,2]
[420665953,1776450640356,-1199.0,0.00010685,2]
[420665955,1776450640367,-1252.0,0.00010772,2]
[420665956,1776450640376,-1152.0,0.00010773,2]
[420665957,1776450640385,-4609.0,0.00010773,2]
[420665958,1776450640395,-150.0,0.000108,2]
[420665959,1776450640404,-150.0,0.000108,2]
[420665960,1776450640413,-150.0,0.000108,2]
[420665961,1776450640423,-150.0,0.000108,2]
[420665962,1776450640431,-150.0,0.000108,2]
[420665963,1776450640440,-150.0,0.000108,2]
[420665964,1776450640449,-150.0,0.000108,2]
[420665965,1776450640458,-150.0,0.000108,2]
[420665966,1776450640468,-150.0,0.000108,2]
[420665967,1776450640477,-150.0,0.000108,2]
[420665968,1776450640486,-150.0,0.000108,2]
[420665969,1776450640495,-150.0,0.000108,2]
[420665970,1776450640505,-150.0,0.000108,2]
[420665971,1776450640514,-150.0,0.00010838,2]
[420665972,1776450640523,-150.0,0.0001085,2]
[420665973,1776450640532,-150.0,0.00010852,2]
[420665974,1776450640542,-150.0,0.00010863,2]
[420665975,1776450640551,-150.0,0.00010863,2]
[420665976,1776450640560,-150.0,0.00010875,2]
[420665977,1776450640569,-150.0,0.00010875,2]
[420665978,1776450640578,-150.0,0.000109,2]
[420665979,1776450640587,-500.0,0.000109,3]
[420665980,1776450640597,-4119.69341029,0.000109,2]
[420665981,1776450640606,-4119.69341026,0.000109,2]
[420665982,1776450640615,-4119.69341026,0.000109,2]
[420665983,1776450640624,-4119.69341026,0.000109,2]
[420665984,1776450640633,-4119.69341026,0.000109,2]
[420665985,1776450640642,-4119.69341026,0.000109,2]
[420665986,1776450640651,-2400.0,0.00010904,2]
[420665987,1776450640660,-3000.0,0.00010904,2]
[420665988,1776450640669,-150.0,0.00010904,2]
[420665989,1776450640679,-150.0,0.00010913,2]
[420665990,1776450640687,-471.1752,0.00010915,2]
[420665991,1776450640697,-150.0,0.00010926,2]
[420665992,1776450640706,-150.0,0.00010926,2]
[420665993,1776450640715,-150.0,0.00010933,2]
[420665994,1776450640724,-150.0,0.0001095,2]
[420665995,1776450640733,-150.0,0.0001095,2]
[420665996,1776450640742,-150.0,0.0001095,2]
[420665997,1776450640751,-150.0,0.0001095,2]
[420665998,1776450640760,-150.0,0.00010957,2]
[420665999,1776450640769,-175.503927,0.00010958,2]
[420666000,1776450640779,-500.0,0.00010959,2]
[420666001,1776450640788,-178.08835478,0.00010959,2]
[420666002,1776450640797,-150.0,0.00010959,2]
[420666003,1776450640806,-1199.0,0.00010959,2]
[420666004,1776450640815,-222.71,0.00010959,2]
[420666005,1776450640824,-150.0,0.00010959,2]
[420666006,1776450640834,-150.0,0.00010988,2]
[420666007,1776450640843,-150.0,0.00010989,2]
[420666008,1776450640852,-150.0,0.00010989,2]
[420666009,1776450640861,-150.0,0.00011,2]
[420666010,1776450640870,-150.0,0.00011009,2]
[420666011,1776450640880,-150.0,0.00011025,2]
[420666012,1776450640889,-150.0,0.00011025,2]
[420666013,1776450640898,-150.0,0.0001104,2]
[420666014,1776450640907,-150.0,0.0001105,2]
[420666015,1776450640917,-150.0,0.00011053,2]
[420666016,1776450640926,-150.0,0.00011053,2]
[420666017,1776450640936,-350.65,0.00011059,2]
[420666018,1776450640945,-150.0,0.00011061,2]
[420666019,1776450640954,-150.0,0.00011063,2]
[420666020,1776450640963,-350.0,0.00011066,4]
[420666021,1776450640972,-150.0,0.00011067,2]
[420666022,1776450640982,-151.0,0.00011096,2]
[420666023,1776450640991,-200.0,0.00011096,2]
[420666024,1776450641001,-250.0,0.00011096,2]
[420666025,1776450641010,-26872.84618034,0.00011099,2]
[420666026,1776450641019,-26872.84618028,0.00011099,2]
[420666027,1776450641029,-26872.84618028,0.00011099,2]
[420666028,1776450641038,-26872.84618028,0.00011099,2]
[420666029,1776450641047,-26872.84618028,0.00011099,2]
[420666030,1776450641056,-26872.84618028,0.00011099,2]
[420666031,1776450641068,-26872.84618028,0.00011099,2]
[420666032,1776450641077,-26872.84618028,0.00011099,2]
[420666033,1776450641087,-18560.55583441,0.00011099,2]
[420666034,1776450641096,-18560.55583436,0.00011099,2]
[420666035,1776450641105,-18560.55583436,0.00011099,2]
[420666036,1776450641115,-18560.55583436,0.00011099,2]
[420666037,1776450641124,-18560.55583436,0.00011099,2]
[420666039,1776450641133,-18560.55583436,0.00011099,2]
[420666040,1776450641142,-18560.55583436,0.00011099,2]
[420666041,1776450641152,-18560.55583436,0.00011099,2]
[420666042,1776450641161,-150.0,0.000111,2]
[420666043,1776450641182,-150.0,0.000111,2]
[420666044,1776450641192,-150.0,0.000111,2]
[420666045,1776450641201,-150.0,0.000111,2]
[420666046,1776450641210,-800.0,0.000111,4]
[420666047,1776450641220,-150.0,0.00011113,2]
[420666048,1776450641230,-150.0,0.00011116,2]
[420666049,1776450641239,-150.0,0.00011116,2]
[420666050,1776450641249,-150.0,0.00011138,2]
[420666051,1776450641258,-150.0,0.0001115,2]
[420666052,1776450641267,-150.0,0.00011165,2]
[420666053,1776450641277,-150.0,0.00011175,2]
[420666054,1776450641286,-150.0,0.00011175,2]
[420666055,1776450641296,-150.0,0.00011179,2]
[420666056,1776450641305,-150.0,0.00011179,2]
[420666057,1776450641316,-150.0,0.000112,2]
[420666058,1776450641327,-150.0,0.000112,2]
[420666059,1776450641336,-1100.0,0.000112,4]
[420666060,1776450641345,-150.0,0.00011213,2]
[420666061,1776450641355,-150.0,0.00011217,2]
[420666062,1776450641364,-240.14,0.00011229,2]
[420666063,1776450641374,-500.0,0.00011233,2]
[420666064,1776450641383,-1199.0,0.00011233,2]
[420666065,1776450641393,-362.0,0.00011237,7]
[420666066,1776450641402,-150.0,0.00011242,2]
[420666067,1776450641412,-150.0,0.00011242,2]
[420666068,1776450641423,-150.0,0.0001125,2]
[420666069,1776450641432,-150.0,0.0001125,2]
[420666070,1776450641442,-150.0,0.0001125,2]
[420666071,1776450641451,-150.0,0.0001125,2]
[420666072,1776450641460,-4119.69341026,0.00011251,2]
[420666073,1776450641470,-5800.0,0.00011264,2]
[420666074,1776450641479,-150.0,0.0001127,2]
[420666075,1776450641489,-5800.0,0.00011273,2]
[420666076,1776450641499,-150.0,0.0001128,2]
[420666077,1776450641508,-5800.0,0.00011281,2]
[420666078,1776450641517,-1000.0,0.00011284,2]
[420666079,1776450641527,-150.0,0.00011288,2]
[420666080,1776450641536,-150.0,0.000113,2]
[420666081,1776450641545,-1400.0,0.000113,4]
[420666082,1776450641555,-2000.0,0.00011301,2]
[420666083,1776450641564,-150.0,0.00011305,2]
[420666084,1776450641579,-150.0,0.00011305,2]
[420666085,1776450642099,-12780.75,0.00011314,2]
[420666086,1776450642110,-150.0,0.00011322,2]
[420666087,1776450642119,-150.0,0.00011325,2]
[420666088,1776450642129,-150.0,0.00011325,2]
[420666089,1776450642138,-150.0,0.00011333,2]
[420666090,1776450642147,-150.0,0.0001135,2]
[420666091,1776450642156,-150.0,0.00011363,2]
[420666092,1776450642167,-150.0,0.00011368,2]
[420666093,1776450642176,-150.0,0.00011368,2]
[420666094,1776450642186,-150.0,0.00011374,2]
[420666095,1776450642195,-1324.33736401,0.00011393,2]
[420666096,1776450642204,-500.0,0.00011393,2]
[420666097,1776450642218,-500.0,0.00011393,2]
[420666098,1776450642233,-500.0,0.00011393,2]
[420666099,1776450642242,-542.0,0.00011393,2]
[420666100,1776450642253,-18560.55583436,0.00011395,2]
[420666101,1776450642262,-26872.84618028,0.00011396,2]
[420666102,1776450642273,-150.0,0.000114,2]
[420666103,1776450642282,-150.0,0.000114,2]
[420666104,1776450642291,-150.0,0.000114,2]
[420666105,1776450642300,-150.0,0.000114,2]
[420666106,1776450642311,-150.0,0.000114,2]
[420666107,1776450642320,-200.0,0.000114,4]
[420666108,1776450642332,-222.71,0.00011416,2]
[420666109,1776450642341,-350.65,0.00011417,2]
[420666110,1776450642350,-150.0,0.00011426,2]
[420666111,1776450642360,-150.0,0.00011432,2]
[420666112,1776450642369,-150.0,0.00011432,2]
[420666113,1776450642379,-150.0,0.00011438,2]
[420666114,1776450642388,-150.0,0.0001145,2]
[420666115,1776450642397,-150.0,0.00011467,2]
[420666116,1776450642407,-150.0,0.00011475,2]
[420666117,1776450642417,-150.0,0.00011475,2]
[420666118,1776450642427,-150.0,0.00011478,2]
[420666119,1776450642436,-1116.0,0.0001149,2]
[420666120,1776450642450,-150.0,0.00011495,2]
[420666121,1776450642459,-150.0,0.00011495,2]
[420666122,1776450642468,-150.0,0.000115,2]
[420666123,1776450642478,-200.0,0.000115,4]
[420666124,1776450642487,-350.0,0.00011501,2]
[420666125,1776450642496,-4080.51,0.00011507,2]
[420666126,1776450642506,-1199.0,0.00011507,2]
[420666127,1776450642515,-219.107056,0.00011507,2]
[420666128,1776450642525,-10732.81540847,0.0001151,2]
[420666129,1776450642534,-537.13997,0.0001151,2]
[420666130,1776450642543,-537.13997,0.0001151,2]
[420666131,1776450642553,-200.0,0.00011512,3]
[420666132,1776450642562,-200.0,0.00011512,3]
[420666133,1776450642571,-200.0,0.00011512,2]
[420666134,1776450642581,-200.0,0.00011512,2]
[420666135,1776450642590,-200.0,0.00011512,2]
[420666136,1776450642599,-200.0,0.00011512,2]
[420666137,1776450642608,-200.0,0.00011512,2]
[420666138,1776450642620,-200.0,0.00011512,2]
[420666139,1776450642629,-200.0,0.00011512,2]
[420666140,1776450642639,-200.0,0.00011512,3]
[420666141,1776450642648,-263.64,0.00011512,2]
[420666142,1776450642658,-150.0,0.00011513,2]
[420666143,1776450642668,-3750.7666087,0.00011514,2]
[420666144,1776450642678,-537.13997,0.0001152,2]
[420666145,1776450642687,-150.0,0.0001152,2]
[420666146,1776450642696,-150.0,0.0001153,2]
[420666147,1776450642706,-2000.0,0.00011533,2]
[420666148,1776450642716,-200.0,0.00011533,2]
[420666149,1776450642725,-150.0,0.0001155,2]
[420666150,1776450642735,-150.0,0.0001155,2]
[420666151,1776450642744,-150.0,0.0001155,2]
[420666152,1776450642754,-150.0,0.0001155,2]
[420666153,1776450642763,-537.13997,0.0001155,2]
[420666154,1776450642773,-150.0,0.00011558,2]
[420666155,1776450642783,-150.0,0.00011558,2]
[420666156,1776450642792,-150.0,0.00011583,2]
[420666157,1776450642801,-150.0,0.00011588,2]
[420666158,1776450642810,-150.0,0.000116,2]
[420666159,1776450642819,-150.0,0.000116,2]
[420666160,1776450642830,-200.0,0.000116,4]
[420666161,1776450642839,-2347.05082664,0.000116,2]
[420666162,1776450642849,-3012.86323663,0.000116,2]
[420666163,1776450642862,-1114.40432693,0.000116,2]
[420666164,1776450642871,-165.5303,0.0001162,2]
[420666165,1776450642881,-165.5303,0.0001162,2]
[420666166,1776450642890,-150.0,0.00011621,2]
[420666167,1776450642900,-150.0,0.00011621,2]
[420666168,1776450642910,-150.0,0.00011625,2]
[420666169,1776450642919,-150.0,0.00011625,2]
[420666170,1776450642929,-151.0,0.00011626,2]
[420666171,1776450642938,-200.0,0.00011626,2]
[420666172,1776450642948,-200.0,0.00011626,2]
[420666173,1776450642957,-200.0,0.00011626,2]
[420666174,1776450642967,-537.13997,0.00011626,2]
[420666175,1776450642976,-537.13998,0.00011626,2]
[420666176,1776450642986,-500.0,0.00011626,2]
[420666177,1776450642995,-150.0,0.00011635,2]
[420666178,1776450643005,-200.0,0.00011644,2]
[420666179,1776450643015,-150.0,0.0001165,2]
[420666180,1776450643024,-160.0,0.00011655,3]
[420666181,1776450643034,-150.0,0.00011663,2]
[420666182,1776450643044,-150.0,0.00011684,2]
[420666183,1776450643053,-150.0,0.00011684,2]
[420666184,1776450643063,-150.0,0.00011687,2]
[420666185,1776450643072,-150.0,0.00011699,2]
[420666186,1776450643082,-150.0,0.000117,2]
[420666187,1776450643092,-150.0,0.000117,2]
[420666188,1776450643101,-150.0,0.000117,2]
[420666189,1776450643111,-150.0,0.000117,2]
[420666191,1776450643120,-200.0,0.000117,4]
[420666192,1776450643130,-150.0,0.00011733,2]
[420666193,1776450643139,-150.0,0.00011738,2]
[420666194,1776450643149,-150.0,0.00011739,2]
[420666195,1776450643158,-200.0,0.00011742,2]
[420666196,1776450643168,-200.0,0.00011742,2]
[420666198,1776450643178,-200.0,0.00011742,2]
[420666200,1776450643188,-150.0,0.00011747,2]
[420666202,1776450643197,-150.0,0.00011747,2]
[420666204,1776450643207,-150.0,0.0001175,2]
[420666206,1776450643216,-150.0,0.0001176,2]
[420666208,1776450643226,-350.0,0.00011762,2]
[420666211,1776450643237,-150.0,0.00011775,2]
[420666213,1776450643247,-150.0,0.00011775,2]
[420666215,1776450643256,-151.0,0.00011778,2]
[420666216,1776450643266,-1199.0,0.00011781,2]
[420666217,1776450643276,-151.0,0.00011783,2]
[420666218,1776450643285,-19203.39,0.00011786,2]
[420666220,1776450643295,-8795.12,0.00011786,2]
[420666222,1776450643312,-150.0,0.00011791,2]
[420666225,1776450643326,-150.0,0.000118,2]
[420666227,1776450643336,-1130.0,0.000118,4]
[420666228,1776450643346,-150.0,0.00011811,2]
[420666229,1776450643355,-150.0,0.00011811,2]
[420666230,1776450643365,-150.0,0.00011813,2]
[420666232,1776450643375,-194.81,0.00011813,2]
[420666234,1776450643384,-150.0,0.00011843,2]
[420666235,1776450643394,-194.81,0.0001185,2]
[420666236,1776450643404,-1613.0,0.0001185,2]
[420666237,1776450643413,-6453.0,0.0001185,2]
[420666238,1776450643423,-150.0,0.0001185,2]
[420666239,1776450643434,-150.0,0.0001185,2]
[420666240,1776450643444,-150.0,0.0001185,2]
[420666241,1776450643454,-150.0,0.0001185,2]
[420666242,1776450643464,-2129.0,0.00011854,2]
[420666243,1776450643473,-200.0,0.0001186,2]
[420666244,1776450643483,-200.0,0.0001186,2]
[420666245,1776450643493,-200.0,0.0001186,2]
[420666246,1776450643502,-7.8306178,0.00011867,2]
[420666255,1776450646099,-908.33726995,0.00011776,2]
[420666256,1776450646108,-142.1693822,0.00011867,2]
[420666257,1776450646118,-222.71,0.00011872,2]
[420666258,1776450646127,-150.0,0.00011874,2]
[420666259,1776450646136,-150.0,0.00011874,2]
[420666260,1776450646145,-204.56,0.00011884,2]
[420666261,1776450646155,-237.41,0.00011884,2]
[420666262,1776450646164,-736.53,0.00011885,2]
[420666263,1776450646174,-150.01,0.00011885,2]
[420666264,1776450646183,-192.87,0.00011885,2]
[420666265,1776450646193,-150.0,0.00011888,2]
[420666266,1776450646202,-194.81,0.00011888,2]
[420666267,1776450646211,-150.0,0.00011896,2]
[420666268,1776450646221,-150.0,0.00011896,2]
[420666269,1776450646230,-150.0,0.00011896,2]
[420666270,1776450646239,-150.0,0.00011896,2]
[420666271,1776450646249,-150.0,0.00011896,2]
[420666272,1776450646258,-178.0,0.00011896,2]
[420666273,1776450646268,-150.0,0.00011896,2]
[420666274,1776450646277,-361.19,0.000119,2]
[420666275,1776450646286,-10000.0,0.000119,2]
[420666276,1776450646295,-12168.7562907,0.000119,2]
[420666277,1776450646304,-150.0,0.000119,2]
[420666278,1776450646314,-4119.69341026,0.000119,2]
[420666279,1776450646323,-26872.84618028,0.000119,2]
[420666280,1776450646333,-18560.55583436,0.000119,2]
[420666281,1776450646343,-4228.64890692,0.000119,2]
[420666282,1776450646352,-152.0,0.000119,5]
[420666283,1776450646362,-434.58338101,0.00011924,2]
[420666284,1776450646372,-150.0,0.00011925,2]
[420666285,1776450646383,-150.0,0.00011925,2]
[420666286,1776450646392,-150.0,0.00011937,2]
[420666287,1776450646401,-150.0,0.00011937,2]
[420666288,1776450646410,-150.0,0.00011948,2]
[420666289,1776450646420,-150.0,0.0001195,2]
[420666290,1776450646429,-786.85,0.00011957,2]
[420666291,1776450646438,-786.85,0.00011957,2]
[420666292,1776450646447,-786.85,0.00011957,2]
[420666293,1776450646456,-786.85,0.00011957,2]
[420666294,1776450646466,-786.85,0.00011957,2]
[420666295,1776450646475,-786.85,0.00011957,2]
[420666296,1776450646484,-786.85,0.00011957,2]
[420666297,1776450646495,-874.52,0.00011957,2]
[420666298,1776450646505,-987.07,0.00011957,2]
[420666299,1776450646515,-987.07,0.00011957,2]
[420666300,1776450646525,-987.07,0.00011957,2]
[420666301,1776450646535,-987.07,0.00011957,2]
[420666302,1776450646544,-987.07,0.00011957,2]
[420666303,1776450646553,-987.07,0.00011957,2]
[420666304,1776450646562,-987.07,0.00011957,2]
[420666305,1776450646572,-987.07,0.00011957,2]
[420666306,1776450646582,-990.25,0.00011957,2]
[420666307,1776450646592,-150.0,0.00011963,2]
[420666308,1776450646603,-358.02545561,0.00011967,4]
[420666309,1776450646612,-1000.0,0.0001197,2]
[420666310,1776450646623,-669.27607267,0.0001197,2]
[420666311,1776450646632,-1000.0,0.0001197,2]